[Event "Early-Titled-Tuesday-Blitz-October-24-2023"]
[Site "Chess.com"]
[Date "2023.10.24"]
[Round "1"]
[White "PositionalPanther"]
[Black "RamyresCoelho"]
[Result "1-0"]
[WhiteElo "2602"]
[BlackElo "2276"]
[TimeControl "180+1"]
[EndTime "8:09:21 PDT"]
[Termination "PositionalPanther won by checkmate"]

1. Nf3 {[%clk 0:02:33.3]} 1... Nf6 {[%clk 0:02:59.1]} 2. g3 {[%clk 0:02:34.2]}
2... g6 {[%clk 0:02:59.2]} 3. Bg2 {[%clk 0:02:20.9]} 3... Bg7 {[%clk 0:03:00.1]}
4. O-O {[%clk 0:02:20.7]} 4... O-O {[%clk 0:03:01]} 5. d4 {[%clk 0:02:21.3]}
5... d6 {[%clk 0:03:01.8]} 6. b3 {[%clk 0:02:21]} 6... c6 {[%clk 0:03:01.9]} 7.
Bb2 {[%clk 0:02:15.8]} 7... Qc7 {[%clk 0:03:02.2]} 8. Nbd2 {[%clk 0:02:08.5]}
8... Nbd7 {[%clk 0:03:03.1]} 9. e4 {[%clk 0:02:07]} 9... e5 {[%clk 0:03:02.2]}
10. dxe5 {[%clk 0:01:55.5]} 10... Nxe5 {[%clk 0:03:03.1]} 11. Nxe5 {[%clk
0:01:52.2]} 11... dxe5 {[%clk 0:03:04]} 12. Qe2 {[%clk 0:01:52.2]} 12... Bg4
{[%clk 0:03:00.1]} 13. Qe3 {[%clk 0:01:47.2]} 13... Rfd8 {[%clk 0:02:55.7]} 14.
h3 {[%clk 0:01:46.7]} 14... Be6 {[%clk 0:02:54.6]} 15. Rfd1 {[%clk 0:01:45.5]}
15... h5 {[%clk 0:02:51.3]} 16. Bf1 {[%clk 0:01:42.6]} 16... Kh7 {[%clk
0:02:50.6]} 17. Bc4 {[%clk 0:01:43]} 17... Bh6 {[%clk 0:02:46.9]} 18. Qe2 {[%clk
0:01:40.8]} 18... Bxd2 {[%clk 0:02:40]} 19. Bxe6 {[%clk 0:01:36.3]} 19... fxe6
{[%clk 0:02:38.6]} 20. Rxd2 {[%clk 0:01:35.9]} 20... Rxd2 {[%clk 0:02:39.1]} 21.
Qxd2 {[%clk 0:01:36.8]} 21... Nxe4 {[%clk 0:02:38.4]} 22. Qe3 {[%clk 0:01:34.5]}
22... Nf6 {[%clk 0:02:20.9]} 23. Qxe5 {[%clk 0:01:22.7]} 23... Qxe5 {[%clk
0:02:20]} 24. Bxe5 {[%clk 0:01:23.6]} 24... Nd7 {[%clk 0:02:18.3]} 25. Bb2
{[%clk 0:01:20.4]} 25... Rf8 {[%clk 0:02:00]} 26. Rd1 {[%clk 0:01:20.6]} 26...
Rf7 {[%clk 0:01:59.5]} 27. Kg2 {[%clk 0:01:18.5]} 27... Kg8 {[%clk 0:01:59.3]}
28. Rd6 {[%clk 0:01:17.4]} 28... Re7 {[%clk 0:01:53]} 29. Ba3 {[%clk 0:01:17.8]}
29... Kf7 {[%clk 0:01:48.6]} 30. c4 {[%clk 0:01:12.8]} 30... c5 {[%clk
0:01:43.6]} 31. Bb2 {[%clk 0:01:10.3]} 31... b6 {[%clk 0:01:38.9]} 32. g4 {[%clk
0:01:06.6]} 32... hxg4 {[%clk 0:01:38.2]} 33. hxg4 {[%clk 0:01:07]} 33... Nf6
{[%clk 0:01:36.8]} 34. f3 {[%clk 0:00:58]} 34... Rd7 {[%clk 0:01:33.4]} 35.
Rxd7+ {[%clk 0:00:50.7]} 35... Nxd7 {[%clk 0:01:34.3]} 36. f4 {[%clk 0:00:51.4]}
36... e5 {[%clk 0:01:26.4]} 37. Kf3 {[%clk 0:00:42.4]} 37... exf4 {[%clk
0:01:19.7]} 38. Kxf4 {[%clk 0:00:43.3]} 38... a6 {[%clk 0:01:01.8]} 39. a4
{[%clk 0:00:28.7]} 39... Ke6 {[%clk 0:00:51.1]} 40. Kg5 {[%clk 0:00:25.5]} 40...
Kf7 {[%clk 0:00:51]} 41. Bc3 {[%clk 0:00:20.3]} 41... Nf8 {[%clk 0:00:49.5]} 42.
Kf4 {[%clk 0:00:17.9]} 42... Ke6 {[%clk 0:00:44.9]} 43. Bg7 {[%clk 0:00:17.1]}
43... Nd7 {[%clk 0:00:40.7]} 44. Kg5 {[%clk 0:00:16.8]} 44... Kf7 {[%clk
0:00:39.2]} 45. Kh6 {[%clk 0:00:17.4]} 45... Nf6 {[%clk 0:00:29.2]} 46. g5
{[%clk 0:00:07.8]} 46... Ne4 {[%clk 0:00:10.8]} 47. Be5 {[%clk 0:00:07.7]} 47...
Nd2 {[%clk 0:00:07.6]} 48. Bc7 {[%clk 0:00:07.8]} 48... Nxb3 {[%clk 0:00:06.1]}
49. Bxb6 {[%clk 0:00:08.4]} 49... Nd2 {[%clk 0:00:05.8]} 50. Bxc5 {[%clk
0:00:08.4]} 50... Nxc4 {[%clk 0:00:06.7]} 51. Bd4 {[%clk 0:00:07.8]} 51... Nd6
{[%clk 0:00:05.6]} 52. Kh7 {[%clk 0:00:07.8]} 52... Nf5 {[%clk 0:00:05.6]} 53.
Bc5 {[%clk 0:00:08.1]} 53... Nh4 {[%clk 0:00:05.5]} 54. Bb6 {[%clk 0:00:07.9]}
54... Nf3 {[%clk 0:00:05.8]} 55. Be3 {[%clk 0:00:08.5]} 55... a5 {[%clk
0:00:04.6]} 56. Bf4 {[%clk 0:00:07.2]} 56... Nh4 {[%clk 0:00:04.2]} 57. Bc7
{[%clk 0:00:07.5]} 57... Nf5 {[%clk 0:00:05.1]} 58. Bxa5 {[%clk 0:00:07.1]}
58... Nd4 {[%clk 0:00:04.7]} 59. Bd2 {[%clk 0:00:06.9]} 59... Nc6 {[%clk
0:00:04]} 60. a5 {[%clk 0:00:05.8]} 60... Nd8 {[%clk 0:00:02.8]} 61. a6 {[%clk
0:00:06.1]} 61... Ne6 {[%clk 0:00:02.9]} 62. Be3 {[%clk 0:00:06.5]} 62... Nf8+
{[%clk 0:00:02.4]} 63. Kh6 {[%clk 0:00:06.1]} 63... Ne6 {[%clk 0:00:01.3]} 64.
a7 {[%clk 0:00:06.2]} 64... Nc7 {[%clk 0:00:01.9]} 65. Bf4 {[%clk 0:00:06.1]}
65... Na8 {[%clk 0:00:02.8]} 66. Be5 {[%clk 0:00:06]} 66... Nb6 {[%clk
0:00:03.1]} 67. Bd4 {[%clk 0:00:06.1]} 67... Na8 {[%clk 0:00:04]} 68. Bc3 {[%clk
0:00:06.6]} 68... Nc7 {[%clk 0:00:04.4]} 69. Ba5 {[%clk 0:00:07.2]} 69... Na8
{[%clk 0:00:05.3]} 70. Kh7 {[%clk 0:00:07.7]} 70... Ke6 {[%clk 0:00:03.1]} 71.
Kxg6 {[%clk 0:00:08.6]} 71... Kd7 {[%clk 0:00:03.2]} 72. Kh7 {[%clk 0:00:09.1]}
72... Kc6 {[%clk 0:00:04.1]} 73. g6 {[%clk 0:00:09.6]} 73... Kb5 {[%clk
0:00:05]} 74. Bd2 {[%clk 0:00:09.7]} 74... Ka6 {[%clk 0:00:05.2]} 75. g7 {[%clk
0:00:10.6]} 75... Kxa7 {[%clk 0:00:06.1]} 76. g8=Q {[%clk 0:00:11.3]} 76... Kb7
{[%clk 0:00:07]} 77. Qb3+ {[%clk 0:00:11.4]} 77... Kc8 {[%clk 0:00:07]} 78. Bf4
{[%clk 0:00:12.3]} 78... Kd7 {[%clk 0:00:06.7]} 79. Qf7+ {[%clk 0:00:12.9]}
79... Kc6 {[%clk 0:00:06.4]} 80. Qa7 {[%clk 0:00:13.4]} 80... Nb6 {[%clk
0:00:06]} 81. Qa6 {[%clk 0:00:13.5]} 81... Kc5 {[%clk 0:00:04.9]} 82. Be3+
{[%clk 0:00:13.2]} 82... Kb4 {[%clk 0:00:04.4]} 83. Bxb6 {[%clk 0:00:14.1]}
83... Kb3 {[%clk 0:00:03.6]} 84. Qa5 {[%clk 0:00:14.4]} 84... Kc4 {[%clk
0:00:03.7]} 85. Qc5+ {[%clk 0:00:14.8]} 85... Kb3 {[%clk 0:00:04.6]} 86. Qd4
{[%clk 0:00:15.5]} 86... Ka2 {[%clk 0:00:04.6]} 87. Qc3 {[%clk 0:00:15.6]} 87...
Kb1 {[%clk 0:00:04.6]} 88. Qd2 {[%clk 0:00:15.3]} 88... Ka1 {[%clk 0:00:04.5]}
89. Bd4+ {[%clk 0:00:15.8]} 89... Kb1 {[%clk 0:00:04.9]} 90. Qb2# {[%clk
0:00:16.7]} 1-0

[Event "Early-Titled-Tuesday-Blitz-October-24-2023"]
[Site "Chess.com"]
[Date "2023.10.24"]
[Round "1"]
[White "Logman74"]
[Black "klimkoj"]
[Result "1-0"]
[WhiteElo "2436"]
[BlackElo "2741"]
[TimeControl "180+1"]
[EndTime "8:09:25 PDT"]
[Termination "Logman74 won on time"]

1. e4 {[%clk 0:02:58.7]} 1... c5 {[%clk 0:02:59.3]} 2. Nf3 {[%clk 0:02:58.6]}
2... d6 {[%clk 0:02:59.9]} 3. d4 {[%clk 0:02:58.5]} 3... cxd4 {[%clk 0:03:00.8]}
4. Nxd4 {[%clk 0:02:58.9]} 4... Nf6 {[%clk 0:03:01.5]} 5. Nc3 {[%clk 0:02:59.1]}
5... a6 {[%clk 0:03:02]} 6. Be2 {[%clk 0:02:58.6]} 6... e5 {[%clk 0:03:02.3]} 7.
Nb3 {[%clk 0:02:58.9]} 7... Be7 {[%clk 0:03:03]} 8. Bg5 {[%clk 0:02:54.3]} 8...
Be6 {[%clk 0:02:50.2]} 9. Qd3 {[%clk 0:02:51.4]} 9... Nbd7 {[%clk 0:02:49.6]}
10. O-O-O {[%clk 0:02:49.6]} 10... Rc8 {[%clk 0:02:49.7]} 11. Kb1 {[%clk
0:02:49.9]} 11... b5 {[%clk 0:02:49.9]} 12. h4 {[%clk 0:02:31.1]} 12... Qc7
{[%clk 0:02:42.6]} 13. Nd5 {[%clk 0:02:28.8]} 13... Bxd5 {[%clk 0:02:42]} 14.
exd5 {[%clk 0:02:28.1]} 14... Nb6 {[%clk 0:02:35.2]} 15. Bxf6 {[%clk 0:02:22.8]}
15... Bxf6 {[%clk 0:02:36.1]} 16. Na5 {[%clk 0:02:21.9]} 16... O-O {[%clk
0:02:34.2]} 17. Nc6 {[%clk 0:02:17.5]} 17... e4 {[%clk 0:02:04.3]} 18. Qxe4
{[%clk 0:02:12.1]} 18... Rfe8 {[%clk 0:02:04.2]} 19. Qf3 {[%clk 0:02:02]} 19...
Nxd5 {[%clk 0:01:51.3]} 20. Rxd5 {[%clk 0:01:53.7]} 20... Qxc6 {[%clk
0:01:50.9]} 21. Bd3 {[%clk 0:01:52.4]} 21... Re5 {[%clk 0:01:41.2]} 22. Rxe5
{[%clk 0:01:30.9]} 22... Qxf3 {[%clk 0:01:41.4]} 23. gxf3 {[%clk 0:01:31.8]}
23... Bxe5 {[%clk 0:01:41.8]} 24. h5 {[%clk 0:01:29.4]} 24... h6 {[%clk
0:01:41.2]} 25. c3 {[%clk 0:01:27.3]} 25... Kf8 {[%clk 0:01:41.2]} 26. Kc2
{[%clk 0:01:27]} 26... b4 {[%clk 0:01:40.5]} 27. c4 {[%clk 0:01:25.8]} 27... a5
{[%clk 0:01:37.1]} 28. b3 {[%clk 0:01:26.4]} 28... Bd4 {[%clk 0:01:34.7]} 29.
Rf1 {[%clk 0:01:09.1]} 29... Rc5 {[%clk 0:01:33.5]} 30. Rh1 {[%clk 0:01:02.2]}
30... Rg5 {[%clk 0:01:30.8]} 31. Be4 {[%clk 0:00:29.2]} 31... Rg2 {[%clk
0:01:29.8]} 32. Rf1 {[%clk 0:00:29.5]} 32... Rh2 {[%clk 0:01:29.8]} 33. Kd3
{[%clk 0:00:28.8]} 33... Bc5 {[%clk 0:01:29.4]} 34. Bd5 {[%clk 0:00:21.6]} 34...
Rxh5 {[%clk 0:01:29]} 35. Re1 {[%clk 0:00:20.7]} 35... Bxf2 {[%clk 0:01:27]} 36.
Re4 {[%clk 0:00:20.6]} 36... Re5 {[%clk 0:01:04.3]} 37. Rxe5 {[%clk 0:00:17.2]}
37... dxe5 {[%clk 0:01:05.2]} 38. Ke4 {[%clk 0:00:17.5]} 38... Bd4 {[%clk
0:00:55.5]} 39. f4 {[%clk 0:00:16.9]} 39... f6 {[%clk 0:00:56.1]} 40. f5 {[%clk
0:00:15.1]} 40... Ke7 {[%clk 0:00:56.6]} 41. Kf3 {[%clk 0:00:11.9]} 41... Kd6
{[%clk 0:00:32.9]} 42. Bf7 {[%clk 0:00:11.9]} 42... Bb6 {[%clk 0:00:31.8]} 43.
Ke4 {[%clk 0:00:12]} 43... Kc5 {[%clk 0:00:29.1]} 44. Bh5 {[%clk 0:00:12.4]}
44... Bc7 {[%clk 0:00:29.5]} 45. Bg6 {[%clk 0:00:12.7]} 45... Kd6 {[%clk
0:00:30.1]} 46. Bh5 {[%clk 0:00:13.2]} 46... Bb6 {[%clk 0:00:29.7]} 47. Bg6
{[%clk 0:00:13.8]} 47... Bg1 {[%clk 0:00:29.2]} 48. Bh5 {[%clk 0:00:14.3]} 48...
Kc5 {[%clk 0:00:23.8]} 49. Bg6 {[%clk 0:00:14.8]} 49... a4 {[%clk 0:00:24.4]}
50. Bh5 {[%clk 0:00:15.1]} 50... Bf2 {[%clk 0:00:21.3]} 51. Bg6 {[%clk
0:00:14.5]} 51... Bd4 {[%clk 0:00:21.2]} 52. Bh5 {[%clk 0:00:14.5]} 52... axb3
{[%clk 0:00:20.5]} 53. axb3 {[%clk 0:00:13.8]} 53... Kd6 {[%clk 0:00:21.4]} 54.
Bg6 {[%clk 0:00:13.8]} 54... Ke7 {[%clk 0:00:20.9]} 55. Bh5 {[%clk 0:00:14.4]}
55... Kf8 {[%clk 0:00:18.7]} 56. Bg6 {[%clk 0:00:15.1]} 56... Bg1 {[%clk
0:00:18.7]} 57. Kf3 {[%clk 0:00:15.1]} 57... Ba7 {[%clk 0:00:15.4]} 58. Ke4
{[%clk 0:00:15.6]} 58... Ke7 {[%clk 0:00:14.1]} 59. Kd5 {[%clk 0:00:16.2]} 59...
Kd7 {[%clk 0:00:13.9]} 60. Bh5 {[%clk 0:00:16.5]} 60... Bb8 {[%clk 0:00:12.4]}
61. Bg6 {[%clk 0:00:16.9]} 61... Ke7 {[%clk 0:00:11.7]} 62. Bh5 {[%clk
0:00:16.8]} 62... g5 {[%clk 0:00:11.2]} 63. fxg6 {[%clk 0:00:14.3]} 63... Kf8
{[%clk 0:00:10.5]} 64. Ke6 {[%clk 0:00:12]} 64... Kg7 {[%clk 0:00:11]} 65. Kf5
{[%clk 0:00:12.5]} 65... Ba7 {[%clk 0:00:09]} 66. Bf3 {[%clk 0:00:13]} 66... Bc5
{[%clk 0:00:08.4]} 67. Bh5 {[%clk 0:00:13.2]} 67... Be7 {[%clk 0:00:07.8]} 68.
Ke4 {[%clk 0:00:13.6]} 68... Bf8 {[%clk 0:00:06.7]} 69. Kf5 {[%clk 0:00:13.4]}
69... Bd6 {[%clk 0:00:06.4]} 70. Bf3 {[%clk 0:00:13.1]} 70... Bc5 {[%clk
0:00:05.1]} 71. Be2 {[%clk 0:00:12.8]} 71... e4 {[%clk 0:00:04.5]} 72. Kxe4
{[%clk 0:00:12.3]} 72... Kxg6 {[%clk 0:00:04.8]} 73. Kd5 {[%clk 0:00:11.7]}
73... Bf2 {[%clk 0:00:04.7]} 74. c5 {[%clk 0:00:12.3]} 74... Bg3 {[%clk
0:00:05.3]} 75. Ke6 {[%clk 0:00:12.2]} 75... h5 {[%clk 0:00:04.3]} 76. Bd3+
{[%clk 0:00:09.8]} 76... Kg5 {[%clk 0:00:04.2]} 77. Bf5 {[%clk 0:00:10.1]} 77...
h4 {[%clk 0:00:03.8]} 78. c6 {[%clk 0:00:10.1]} 78... Be5 {[%clk 0:00:02.5]} 79.
Bh3 {[%clk 0:00:10.7]} 79... Kf4 {[%clk 0:00:02.9]} 80. Kd7 {[%clk 0:00:06.3]}
1-0

[Event "Early-Titled-Tuesday-Blitz-October-24-2023"]
[Site "Chess.com"]
[Date "2023.10.24"]
[Round "2"]
[White "jasonbolivar"]
[Black "Truequitos"]
[Result "0-1"]
[WhiteElo "2236"]
[BlackElo "2483"]
[TimeControl "180+1"]
[EndTime "8:11:36 PDT"]
[Termination "Truequitos won by resignation"]

1. e4 {[%clk 0:02:57.1]} 1... e6 {[%clk 0:02:59.6]} 2. d4 {[%clk 0:02:55.9]}
2... d5 {[%clk 0:03:00]} 3. e5 {[%clk 0:02:51.2]} 3... c5 {[%clk 0:02:59.9]} 4.
c3 {[%clk 0:02:51.4]} 4... Nc6 {[%clk 0:03:00.1]} 5. Nf3 {[%clk 0:02:51.3]} 5...
Qb6 {[%clk 0:02:52.9]} 6. a3 {[%clk 0:02:50.8]} 6... Bd7 {[%clk 0:02:52.1]} 7.
b4 {[%clk 0:02:50.2]} 7... cxd4 {[%clk 0:02:52.8]} 8. cxd4 {[%clk 0:02:50.3]}
8... Rc8 {[%clk 0:02:53.6]} 9. Bb2 {[%clk 0:02:50.5]} 9... Na5 {[%clk
0:02:53.4]} 10. Bd3 {[%clk 0:02:32.8]} 10... Nc4 {[%clk 0:02:52.5]} 11. Bc1
{[%clk 0:02:33]} 11... a5 {[%clk 0:02:50.8]} 12. Nc3 {[%clk 0:02:28.5]} 12...
axb4 {[%clk 0:02:41.1]} 13. Rb1 {[%clk 0:02:28.4]} 13... Qa5 {[%clk 0:02:38.8]}
14. axb4 {[%clk 0:02:23.5]} 14... Bxb4 {[%clk 0:02:39.7]} 15. Rxb4 {[%clk
0:02:20]} 15... Qxb4 {[%clk 0:02:39.4]} 16. Bd2 {[%clk 0:02:17.3]} 16... Nxd2
{[%clk 0:02:39.5]} 17. Qxd2 {[%clk 0:02:17]} 17... Qxc3 {[%clk 0:02:39.7]} 0-1

[Event "Early-Titled-Tuesday-Blitz-October-24-2023"]
[Site "Chess.com"]
[Date "2023.10.24"]
[Round "2"]
[White "oggy1984"]
[Black "miraitrunks"]
[Result "1-0"]
[WhiteElo "2440"]
[BlackElo "2133"]
[TimeControl "180+1"]
[EndTime "8:13:46 PDT"]
[Termination "oggy1984 won by resignation"]

1. d4 {[%clk 0:03:00.9]} 1... d5 {[%clk 0:02:59.2]} 2. c4 {[%clk 0:03:00.4]}
2... Bf5 {[%clk 0:02:59.8]} 3. Nc3 {[%clk 0:02:53.1]} 3... e6 {[%clk 0:02:59.4]}
4. cxd5 {[%clk 0:02:51.6]} 4... exd5 {[%clk 0:03:00.3]} 5. Nf3 {[%clk 0:02:45]}
5... Nf6 {[%clk 0:02:59.9]} 6. Bf4 {[%clk 0:02:42.5]} 6... c6 {[%clk 0:02:59.8]}
7. e3 {[%clk 0:02:41.6]} 7... Bd6 {[%clk 0:02:59.3]} 8. Bxd6 {[%clk 0:02:41]}
8... Qxd6 {[%clk 0:03:00.2]} 9. Bd3 {[%clk 0:02:41.3]} 9... Bg4 {[%clk
0:02:57.9]} 10. h3 {[%clk 0:02:39.9]} 10... Bh5 {[%clk 0:02:57.7]} 11. g4 {[%clk
0:02:36.6]} 11... Bg6 {[%clk 0:02:57.3]} 12. Ne5 {[%clk 0:02:36.9]} 12... Nbd7
{[%clk 0:02:56.6]} 13. f4 {[%clk 0:02:36.8]} 13... Be4 {[%clk 0:02:46.5]} 14.
Bxe4 {[%clk 0:02:30.7]} 14... dxe4 {[%clk 0:02:47.4]} 15. a3 {[%clk 0:02:10.5]}
15... O-O {[%clk 0:02:19.1]} 16. g5 {[%clk 0:02:09.4]} 16... Nd5 {[%clk
0:02:18.7]} 17. Nxe4 {[%clk 0:02:07.6]} 17... Qc7 {[%clk 0:02:18.7]} 18. Qd3
{[%clk 0:01:54.4]} 18... Rad8 {[%clk 0:02:15.6]} 19. O-O {[%clk 0:01:49.7]}
19... Nxe5 {[%clk 0:02:02.9]} 20. fxe5 {[%clk 0:01:46]} 20... Qc8 {[%clk
0:02:02.8]} 21. Kh2 {[%clk 0:01:35.3]} 21... Rd7 {[%clk 0:01:59.4]} 22. Rf3
{[%clk 0:01:21.3]} 22... Rfd8 {[%clk 0:01:57.8]} 23. Raf1 {[%clk 0:01:17.1]}
23... b6 {[%clk 0:01:58]} 24. Nd6 {[%clk 0:01:09.8]} 1-0

[Event "Early-Titled-Tuesday-Blitz-October-24-2023"]
[Site "Chess.com"]
[Date "2023.10.24"]
[Round "2"]
[White "ama18"]
[Black "Felix-Rose"]
[Result "1-0"]
[WhiteElo "2526"]
[BlackElo "2294"]
[TimeControl "180+1"]
[EndTime "8:13:53 PDT"]
[Termination "ama18 won by resignation"]

1. Nf3 {[%clk 0:03:00.9]} 1... d5 {[%clk 0:02:59.3]} 2. g3 {[%clk 0:03:00.9]}
2... Nf6 {[%clk 0:02:57.5]} 3. Bg2 {[%clk 0:03:01.4]} 3... e6 {[%clk 0:02:58.1]}
4. O-O {[%clk 0:03:00.9]} 4... b5 {[%clk 0:02:58.7]} 5. d4 {[%clk 0:03:00.1]}
5... Bb7 {[%clk 0:02:56.4]} 6. a4 {[%clk 0:03:00.2]} 6... b4 {[%clk 0:02:56.4]}
7. c3 {[%clk 0:03:00.2]} 7... c5 {[%clk 0:02:56.7]} 8. dxc5 {[%clk 0:02:59.4]}
8... Bxc5 {[%clk 0:02:56.4]} 9. cxb4 {[%clk 0:03:00.3]} 9... Bxb4 {[%clk
0:02:56.5]} 10. Ne5 {[%clk 0:03:01.1]} 10... Nbd7 {[%clk 0:02:51.7]} 11. Nd3
{[%clk 0:03:00.7]} 11... Be7 {[%clk 0:02:49.5]} 12. Bf4 {[%clk 0:02:58.7]} 12...
O-O {[%clk 0:02:49.1]} 13. Nc3 {[%clk 0:02:58.3]} 13... Rc8 {[%clk 0:02:41.2]}
14. Nb5 {[%clk 0:02:58.3]} 14... Nc5 {[%clk 0:01:42.4]} 15. Nxa7 {[%clk
0:02:43.8]} 15... Ra8 {[%clk 0:01:38.5]} 16. Nb5 {[%clk 0:02:37.1]} 16... Nxd3
{[%clk 0:01:38.4]} 17. Qxd3 {[%clk 0:02:38]} 17... Ba6 {[%clk 0:01:38.6]} 18.
Rfc1 {[%clk 0:02:35.2]} 18... Qb6 {[%clk 0:01:25.1]} 19. Qd4 {[%clk 0:02:33]}
19... Qxd4 {[%clk 0:00:55.4]} 20. Nxd4 {[%clk 0:02:33.9]} 20... Nd7 {[%clk
0:00:52.9]} 21. Rc7 {[%clk 0:02:30.1]} 21... Rfd8 {[%clk 0:00:52.2]} 22. Nc6
{[%clk 0:02:29.7]} 22... Bxe2 {[%clk 0:00:38.9]} 23. Nxe7+ {[%clk 0:02:22]}
23... Kf8 {[%clk 0:00:39.1]} 24. Nc6 {[%clk 0:02:22.9]} 1-0

[Event "Early-Titled-Tuesday-Blitz-October-24-2023"]
[Site "Chess.com"]
[Date "2023.10.24"]
[Round "2"]
[White "PositionalPanther"]
[Black "GroovyKettle"]
[Result "0-1"]
[WhiteElo "2600"]
[BlackElo "2970"]
[TimeControl "180+1"]
[EndTime "8:13:54 PDT"]
[Termination "GroovyKettle won by resignation"]

1. Nf3 {[%clk 0:03:00.9]} 1... Nf6 {[%clk 0:03:00.6]} 2. g3 {[%clk 0:03:01.2]}
2... g6 {[%clk 0:03:01.4]} 3. b3 {[%clk 0:03:01.4]} 3... Bg7 {[%clk 0:03:02.3]}
4. Bb2 {[%clk 0:03:01.9]} 4... O-O {[%clk 0:03:03.2]} 5. Bg2 {[%clk 0:03:02.3]}
5... d5 {[%clk 0:03:03.7]} 6. c4 {[%clk 0:02:59.5]} 6... e6 {[%clk 0:03:02.5]}
7. O-O {[%clk 0:02:58.7]} 7... b6 {[%clk 0:03:03.1]} 8. cxd5 {[%clk 0:02:58.4]}
8... exd5 {[%clk 0:03:03]} 9. d4 {[%clk 0:02:56.5]} 9... Bb7 {[%clk 0:03:03.4]}
10. Re1 {[%clk 0:02:56.7]} 10... Re8 {[%clk 0:03:01.1]} 11. Nc3 {[%clk
0:02:54.9]} 11... Nbd7 {[%clk 0:02:53.2]} 12. Rc1 {[%clk 0:02:44.3]} 12... a6
{[%clk 0:02:50.4]} 13. Qd3 {[%clk 0:02:36.2]} 13... Ne4 {[%clk 0:02:45.6]} 14.
Nd2 {[%clk 0:02:32]} 14... Ndf6 {[%clk 0:02:42.2]} 15. Ndxe4 {[%clk 0:02:30.4]}
15... dxe4 {[%clk 0:02:23.3]} 16. Qe3 {[%clk 0:02:29.7]} 16... Ng4 {[%clk
0:02:20.2]} 17. Qf4 {[%clk 0:02:28.2]} 17... f5 {[%clk 0:02:18.8]} 18. Nxe4
{[%clk 0:01:57.7]} 18... Bxe4 {[%clk 0:02:19]} 19. Bxe4 {[%clk 0:01:50.5]} 19...
Rxe4 {[%clk 0:02:19.9]} 20. Qxc7 {[%clk 0:01:47.7]} 20... Qxc7 {[%clk
0:02:19.9]} 21. Rxc7 {[%clk 0:01:48.6]} 21... Bxd4 {[%clk 0:02:20]} 22. Bxd4
{[%clk 0:01:32.2]} 22... Rxd4 {[%clk 0:02:20.9]} 23. f3 {[%clk 0:01:29.3]} 23...
Ne3 {[%clk 0:02:13.5]} 24. Kf2 {[%clk 0:01:28.2]} 24... Re8 {[%clk 0:02:11.6]}
25. Rb7 {[%clk 0:01:21.9]} 25... Nd1+ {[%clk 0:02:05.3]} 26. Kf1 {[%clk
0:01:20.2]} 26... Re6 {[%clk 0:02:05.6]} 27. e4 {[%clk 0:01:14.5]} 27... fxe4
{[%clk 0:02:03.3]} 28. Rxe4 {[%clk 0:01:14]} 28... Rdxe4 {[%clk 0:02:01.7]} 29.
fxe4 {[%clk 0:01:14.9]} 29... Nc3 {[%clk 0:02:02.1]} 30. Ra7 {[%clk 0:01:09.6]}
30... a5 {[%clk 0:02:01.7]} 0-1

[Event "Early-Titled-Tuesday-Blitz-October-24-2023"]
[Site "Chess.com"]
[Date "2023.10.24"]
[Round "2"]
[White "aranibos"]
[Black "noblerone"]
[Result "0-1"]
[WhiteElo "2291"]
[BlackElo "2523"]
[TimeControl "180+1"]
[EndTime "8:13:55 PDT"]
[Termination "noblerone won by resignation"]

1. e4 {[%clk 0:03:00.9]} 1... d5 {[%clk 0:02:57.1]} 2. exd5 {[%clk 0:02:59]}
2... Qxd5 {[%clk 0:02:56.9]} 3. Nc3 {[%clk 0:02:59.4]} 3... Qd8 {[%clk
0:02:56.3]} 4. h3 {[%clk 0:02:59.3]} 4... c6 {[%clk 0:02:51.6]} 5. Nf3 {[%clk
0:02:59.3]} 5... Bf5 {[%clk 0:02:52]} 6. Bc4 {[%clk 0:02:58.7]} 6... e6 {[%clk
0:02:52]} 7. O-O {[%clk 0:02:57.8]} 7... Nf6 {[%clk 0:02:51]} 8. d4 {[%clk
0:02:56.7]} 8... Bd6 {[%clk 0:02:48.6]} 9. Re1 {[%clk 0:02:54.8]} 9... O-O
{[%clk 0:02:48]} 10. Bg5 {[%clk 0:02:53.9]} 10... h6 {[%clk 0:02:48.1]} 11. Bxf6
{[%clk 0:02:49.9]} 11... Qxf6 {[%clk 0:02:47.8]} 12. Ne4 {[%clk 0:02:49.8]}
12... Bxe4 {[%clk 0:02:46.6]} 13. Rxe4 {[%clk 0:02:50.3]} 13... Nd7 {[%clk
0:02:44.3]} 14. c3 {[%clk 0:02:48.8]} 14... Rad8 {[%clk 0:02:33.7]} 15. Qe1
{[%clk 0:02:42]} 15... Nb6 {[%clk 0:02:25.2]} 16. Bb3 {[%clk 0:02:39.8]} 16...
Nd5 {[%clk 0:02:21.1]} 17. Ne5 {[%clk 0:02:33.9]} 17... c5 {[%clk 0:02:01.9]}
18. Rd1 {[%clk 0:02:29.6]} 18... cxd4 {[%clk 0:02:00.2]} 19. Rdxd4 {[%clk
0:02:22.8]} 19... Bc5 {[%clk 0:01:58.8]} 20. Ng4 {[%clk 0:02:13.3]} 20... Qg6
{[%clk 0:01:45.6]} 21. Rc4 {[%clk 0:01:51.7]} 21... b6 {[%clk 0:01:42.2]} 22.
Ne5 {[%clk 0:01:49.8]} 22... Qf5 {[%clk 0:01:34.8]} 23. Rf4 {[%clk 0:01:46.9]}
23... Nxf4 {[%clk 0:01:32.3]} 24. Nc6 {[%clk 0:01:39.9]} 24... Rd7 {[%clk
0:01:22.9]} 0-1